{"text_format":"1","workbook":"xlsx","n_sheets":3,"sheets":["handover.Form","DRIVER","All_Data"],"not_rendered":{"charts":0,"images":9,"macros":1,"external_links":2,"defined_names":7,"comments":1,"pivot_tables":0},"unopened":[],"bounds":{"document_bytes":16777216,"sheet_cells":100000,"rows_first":2000,"rows_last":500,"rows_between":2000,"halvings":0,"cell_chars":16384,"cell_head_chars":4096},"cells_cut":0,"cells_raw":0,"read":"whole","date_system":"1900"}

{"sheet":"handover.Form","index":0,"n_rows":54,"n_cols":20,"rows_kept":54,"cut":false,"hidden":false,"merged":[[50,2,50,4],[50,6,50,7],[50,9,50,10],[51,2,51,4],[51,6,51,7],[52,0,52,11],[42,7,42,8],[42,9,42,10],[44,1,45,10],[49,2,49,4],[49,6,49,7],[49,9,49,10],[7,2,7,3],[7,5,7,6],[7,8,7,9],[7,11,7,12],[8,2,8,3],[8,5,8,6],[8,8,8,9],[8,11,8,12]]}
[]
[]
[]
[]
[null,null,null,null,null,null,null,null,null,null,null,null,"التاريخ",{"$f":"TODAY()","v":"2022-11-07"}]
[null,"الكود","T10",null,null,null,null,null,null,null,null,null,"الموقع","الإدارة",null,null,"مشاريع بيشة",null,null,"المطلوب عند كتابة الكودفي الخلية C6 تظهر بيانات المركبة من الشيت المسمى ALL_DATA"]
[null,null,null,null,null,null,null,null,null,null,null,null,null,null,null,null,"خلاطة خرسانة بيشة",null,null,"وعند كتابة الكود في الخلية C48 يتم احضار البيانات من الشيت المسمى DRIVER"]
[null,"رقم اللوحة",{"$f":"IF(C6=\"\",\"\",_xlfn.XLOOKUP(C6,[1]All_Data!B5:B151,[1]All_Data!K5:K151,\"البيانات غير موجودة\",0,1))","v":"البيانات غير موجودة"},null,"اللون ",{"$f":"IF(C6=\"\",\"\",_xlfn.XLOOKUP(C6,[1]All_Data!B5:B151,[1]All_Data!J5:J151,\"البيانات غير موجودة\",0,1))","v":"البيانات غير موجودة"},null,"رقم الهيكل ",{"$f":"IF(C6=\"\",\"\",_xlfn.XLOOKUP(C6,[1]All_Data!B5:B151,[1]All_Data!L5:L151,\"البيانات غير موجودة\",0,1))","v":"البيانات غير موجودة"},null,"المالك",{"$f":"IF(C6=\"\",\"\",_xlfn.XLOOKUP(C6,[1]All_Data!B5:B151,[1]All_Data!M5:M151,\"البيانات غير موجودة\",0,1))","v":"البيانات غير موجودة"},null,null,null,null,"خلاطة خرسانة الصبيخة",null,null,"وبعد إضافة بيانات المستلم للمركبة يتم افراغ المحتواى الملون باللون الأصفر "]
[null,"وصف الاصل",{"$f":"IF(C6=\"\",\"\",_xlfn.XLOOKUP(C6,[1]All_Data!B5:B151,[1]All_Data!H5:H151,\"البيانات غير موجودة\",0,1))","v":"البيانات غير موجودة"},null,"الرقم التسلسلي ",{"$f":"IF(C6=\"\",\"\",_xlfn.XLOOKUP(C6,[1]All_Data!B5:B151,[1]All_Data!D5:D151,\"البيانات غير موجودة\",0,1))","v":"البيانات غير موجودة"},null,"الموديل ",{"$f":"IF(C6=\"\",\"\",_xlfn.XLOOKUP(C6,[1]All_Data!B5:B151,[1]All_Data!I5:I151,\"البيانات غير موجودة\",0,1))","v":"البيانات غير موجودة"},null,"الترخيص",{"$f":"IF(C6=\"\",\"\",_xlfn.XLOOKUP(C6,[1]All_Data!B5:B151,[1]All_Data!N5:N151,\"البيانات غير موجودة\",0,1))","v":"البيانات غير موجودة"},null,null,null,null,"خلاطة اسفلت بيشة"]
[null,null,null,null,null,null,null,null,null,null,null,null,null,null,null,null,"خلاطة اسفلت الصبيخة"]
[null,null,null,null,null,null,null,null,null,null,null,null,null,null,null,null,"كسارة بيشة"]
[null,null,null,null,null,null,null,null,null,null,null,null,null,null,null,null,"كسارة الصبيخة"]
[null,null,null,null,null,null,null,null,null,null,null,null,null,null,null,null,"عقد 806"]
[null,null,null,null,null,null,null,null,null,null,null,null,null,null,null,null,"عقد 810"]
[null,null,null,null,null,null,null,null,null,null,null,null,null,null,null,null,"وقائي 8006"]
[null,null,null,null,null,null,null,null,null,null,null,null,null,null,null,null,"الإدارة"]
[]
[]
[]
[]
[]
[]
[]
[]
[]
[]
[]
[]
[]
[]
[]
[]
[]
[null,null,null,null,null,null,null,null,null,null,null,null,null,null,null,null,null,"حالة الماكينة"]
[]
[]
[]
[]
[]
[]
[]
[]
[null,null,null,null,null,null,null,"اعتماد الورشة",null,".............................."]
[null,null,null,null,"اقرار باستلام السيارة"]
[null," اقر انا مستلم الأصل المذكور أعلاه باننى استلمت الاصل بالحالة التى عليها وفقا لتقرير الورشة وعلية اكون مسئولا عنها من تاريخ الاستلام فى        /        /           وموقع العمل .........................وان اتبع تعليمات الصادرة من الادارة بخصوص استخدام السيارة "]
[]
[null,"المقربما فية ،،،،،"]
[null,"كود الموظف",4]
[]
[null,"اسم الموظف ",{"$f":"IF(C48=\"\",\"\",_xlfn.XLOOKUP(handover.Form!C48,[1]DRIVER!A:A,[1]DRIVER!D:D,\"لا يوجد\"))","v":"لياقت علي باجوا عنايت الله"},null,null,"رقم الاقامة",{"$f":"IF(C48=\"\",\"\",_xlfn.XLOOKUP(handover.Form!C48,[1]DRIVER!A:A,[1]DRIVER!C:C,\"لا يوجد\"))","v":2139209320},null,"رقم الجوال ",{"$f":"IF(C48=\"\",\"\",_xlfn.XLOOKUP(handover.Form!C48,[1]DRIVER!A:A,[1]DRIVER!I:I,\"لا يوجد\"))","v":"0500000000"}]
[null,"مهنة الإقامة",{"$f":"IF(C48=\"\",\"\",_xlfn.XLOOKUP(handover.Form!C48,[1]DRIVER!A:A,[1]DRIVER!J:J,\"لا يوجد\"))","v":"سائق شاحنة"},null,null,"حالة الموظف",{"$f":"IF(C48=\"\",\"\",_xlfn.XLOOKUP(handover.Form!C48,[1]DRIVER!A:A,[1]DRIVER!F:F,\"لا يوجد\"))","v":"على الكفالة"},null,"رخصة القيادة",{"$f":"IF(C48=\"\",\"\",_xlfn.XLOOKUP(handover.Form!C48,[1]DRIVER!A:A,[1]DRIVER!L:L,\"لا يوجد\"))","v":"نقل ثقيل"}]
[null,"المهنة الفعلية",{"$f":"IF(C48=\"\",\"\",_xlfn.XLOOKUP(handover.Form!C48,[1]DRIVER!A:A,[1]DRIVER!K:K,\"لا يوجد\"))","v":"سائق تريلا"},null,null,"الجنسية",{"$f":"IF(C48=\"\",\"\",_xlfn.XLOOKUP(handover.Form!C48,[1]DRIVER!A:A,[1]DRIVER!E:E,\"لا يوجد\",0,1))","v":"باكستان"}]
[]
[null,"مسئول الحركة التوقيع :.......................................                                             التاريخ      /        /"]

{"sheet":"DRIVER","index":1,"n_rows":4,"n_cols":15,"rows_kept":4,"cut":false,"hidden":false,"merged":[]}
["كود الموظف ","م","رقم اقامة الموظف","اسم الموظف","الجنسية ","حالة الموظف","موقع العمل ","الحالة","رقم الجوال","مهنة الاقامة","المهنة الفعلية ","رخصة القيادة","تاريخ انتهاء الإقامة"]
[4,1,2222222222,"لياقت علي باجوا عنايت الله","باكستان","على الكفالة","نقليات - التريلات","على راس العمل ","0500000000","سائق شاحنة","سائق تريلا","نقل ثقيل","2022-08-29"]
[]
[null,null,null,null,null,null,null,null,null,null,null,null,null,null,"استلامات السيارات والتفاويض.xlsm"]

{"sheet":"All_Data","index":2,"n_rows":154,"n_cols":43,"rows_kept":154,"cut":false,"hidden":false,"merged":[[1,0,1,4]]}
[]
["بيانات السيارات",null,null,null,null,null,null,null,{"$f":"TODAY()","v":"2022-11-07"},null,null,null,null,null,null,null,null,null,null,null,null,null,null,null,null,null,null,null,null,null,null,null,null,null,null,null,null,null,null,null,null,"الرقم التسلسلي","Rows"]
[null,null,null,null,null,null,null,null,null,null,null,null,null,null,null,null,null,null,null,null,null,null,null,null,null,null,null,null,null,null,null,null,null,null,null,null,null,null,null,null,null,2488345584,{"$f":"MATCH(AP3,#REF!,0)","v":{"$error":"#REF!"}}]
["م","كود المعدة","الرقم التسلسلي","الموقع","وصف الاصل","الموديل","اللون","رقم اللوحة","رقم الهيكل","المالك","الترخيص","ملاحظات",null,null,null,null,null,null,null,null,null,null,null,null,null,null,"الفحص ميلادي","المتبقي على الفحص","الاستمارة ميلادي","المتبقي على الاستمارة","التأمين ميلادي","المتبقي على التأمين","الرخصة ميلادي","المتبقي على رخصة القيادة","التفويض ميلادي","المتبقي على التفويض"]
[{"$f":"SUBTOTAL(3,$B$5:B5)","v":1},"TT1",17412710,"صيانة 810","وايت مياه - اكتروس",2007,"رصاصي","ب ر ا  8927","WDB9302031L153554",7009429445,"نقل خاص",null,null,null,null,null,null,null,null,null,null,null,null,null,null,null,null,{"$f":"I2-AC5","v":{"$error":"#NAME?"}},{"$f":"ConvertDate(#REF!)","v":{"$error":"#NAME?"}},null,{"$f":"ConvertDate(#REF!)","v":{"$error":"#NAME?"}},null,null,null,{"$f":"ConvertDate(#REF!)","v":{"$error":"#NAME?"}}]
[{"$f":"SUBTOTAL(3,$B$5:B6)","v":1},null,null,null,null,null,null,null,null,null,null,null,null,null,null,null,null,null,null,null,null,null,null,null,null,null,null,{"$f":"I3-AC6","v":{"$error":"#NAME?"}},{"$f":"ConvertDate(#REF!)","v":{"$error":"#NAME?"}},null,{"$f":"ConvertDate(#REF!)","v":{"$error":"#NAME?"}},null,null,null,{"$f":"ConvertDate(#REF!)","v":{"$error":"#NAME?"}}]
[{"$f":"SUBTOTAL(3,$B$5:B7)","v":1},null,null,null,null,null,null,null,null,null,null,null,null,null,null,null,null,null,null,null,null,null,null,null,null,null,null,{"$f":"I4-AC7","v":{"$error":"#VALUE!"}},{"$f":"ConvertDate(#REF!)","v":{"$error":"#NAME?"}},null,{"$f":"ConvertDate(#REF!)","v":{"$error":"#NAME?"}},null,null,null,{"$f":"ConvertDate(#REF!)","v":{"$error":"#NAME?"}}]
[{"$f":"SUBTOTAL(3,$B$5:B8)","v":1},null,null,null,null,null,null,null,null,null,null,null,null,null,null,null,null,null,null,null,null,null,null,null,null,null,null,{"$f":"I5-AC8","v":{"$error":"#VALUE!"}},{"$f":"ConvertDate(#REF!)","v":{"$error":"#NAME?"}},null,{"$f":"ConvertDate(#REF!)","v":{"$error":"#NAME?"}},null,null,null,{"$f":"ConvertDate(#REF!)","v":{"$error":"#NAME?"}}]
[{"$f":"SUBTOTAL(3,$B$5:B9)","v":1},null,null,null,null,null,null,null,null,null,null,null,null,null,null,null,null,null,null,null,null,null,null,null,null,null,null,{"$f":"I6-AC9","v":{"$error":"#NAME?"}},{"$f":"ConvertDate(#REF!)","v":{"$error":"#NAME?"}},null,{"$f":"ConvertDate(#REF!)","v":{"$error":"#NAME?"}},null,null,null,{"$f":"ConvertDate(#REF!)","v":{"$error":"#NAME?"}}]
[{"$f":"SUBTOTAL(3,$B$5:B10)","v":1},null,null,null,null,null,null,null,null,null,null,null,null,null,null,null,null,null,null,null,null,null,null,null,null,null,null,{"$f":"I7-AC10","v":{"$error":"#NAME?"}},{"$f":"ConvertDate(#REF!)","v":{"$error":"#NAME?"}},null,{"$f":"ConvertDate(#REF!)","v":{"$error":"#NAME?"}},null,null,null,{"$f":"ConvertDate(#REF!)","v":{"$error":"#NAME?"}}]
[{"$f":"SUBTOTAL(3,$B$5:B11)","v":1},null,null,null,null,null,null,null,null,null,null,null,null,null,null,null,null,null,null,null,null,null,null,null,null,null,null,{"$f":"I8-AC11","v":{"$error":"#NAME?"}},{"$f":"ConvertDate(#REF!)","v":{"$error":"#NAME?"}},null,{"$f":"ConvertDate(#REF!)","v":{"$error":"#NAME?"}},null,null,null,{"$f":"ConvertDate(#REF!)","v":{"$error":"#NAME?"}}]
[{"$f":"SUBTOTAL(3,$B$5:B12)","v":1},null,null,null,null,null,null,null,null,null,null,null,null,null,null,null,null,null,null,null,null,null,null,null,null,null,null,{"$f":"I9-AC12","v":{"$error":"#NAME?"}},{"$f":"ConvertDate(#REF!)","v":{"$error":"#NAME?"}},null,{"$f":"ConvertDate(#REF!)","v":{"$error":"#NAME?"}},null,null,null,{"$f":"ConvertDate(#REF!)","v":{"$error":"#NAME?"}}]
[{"$f":"SUBTOTAL(3,$B$5:B13)","v":1},null,null,null,null,null,null,null,null,null,null,null,null,null,null,null,null,null,null,null,null,null,null,null,null,null,null,{"$f":"I10-AC13","v":{"$error":"#NAME?"}},{"$f":"ConvertDate(#REF!)","v":{"$error":"#NAME?"}},null,{"$f":"ConvertDate(#REF!)","v":{"$error":"#NAME?"}},null,null,null,{"$f":"ConvertDate(#REF!)","v":{"$error":"#NAME?"}}]
[{"$f":"SUBTOTAL(3,$B$5:B14)","v":1},null,null,null,null,null,null,null,null,null,null,null,null,null,null,null,null,null,null,null,null,null,null,null,null,null,null,{"$f":"I11-AC14","v":{"$error":"#NAME?"}},{"$f":"ConvertDate(#REF!)","v":{"$error":"#NAME?"}},null,{"$f":"ConvertDate(#REF!)","v":{"$error":"#NAME?"}},null,null,null,{"$f":"ConvertDate(#REF!)","v":{"$error":"#NAME?"}}]
[{"$f":"SUBTOTAL(3,$B$5:B15)","v":1},null,null,null,null,null,null,null,null,null,null,null,null,null,null,null,null,null,null,null,null,null,null,null,null,null,null,{"$f":"I12-AC15","v":{"$error":"#NAME?"}},{"$f":"ConvertDate(#REF!)","v":{"$error":"#NAME?"}},null,{"$f":"ConvertDate(#REF!)","v":{"$error":"#NAME?"}},null,null,null,{"$f":"ConvertDate(#REF!)","v":{"$error":"#NAME?"}}]
[{"$f":"SUBTOTAL(3,$B$5:B16)","v":1},null,null,null,null,null,null,null,null,null,null,null,null,null,null,null,null,null,null,null,null,null,null,null,null,null,null,{"$f":"I13-AC16","v":{"$error":"#NAME?"}},{"$f":"ConvertDate(#REF!)","v":{"$error":"#NAME?"}},null,{"$f":"ConvertDate(#REF!)","v":{"$error":"#NAME?"}},null,null,null,{"$f":"ConvertDate(#REF!)","v":{"$error":"#NAME?"}}]
[{"$f":"SUBTOTAL(3,$B$5:B17)","v":1},null,null,null,null,null,null,null,null,null,null,null,null,null,null,null,null,null,null,null,null,null,null,null,null,null,null,{"$f":"I14-AC17","v":{"$error":"#NAME?"}},{"$f":"ConvertDate(#REF!)","v":{"$error":"#NAME?"}},null,{"$f":"ConvertDate(#REF!)","v":{"$error":"#NAME?"}},null,null,null,{"$f":"ConvertDate(#REF!)","v":{"$error":"#NAME?"}}]
[{"$f":"SUBTOTAL(3,$B$5:B18)","v":1},null,null,null,null,null,null,null,null,null,null,null,null,null,null,null,null,null,null,null,null,null,null,null,null,null,null,{"$f":"I15-AC18","v":{"$error":"#NAME?"}},{"$f":"ConvertDate(#REF!)","v":{"$error":"#NAME?"}},null,{"$f":"ConvertDate(#REF!)","v":{"$error":"#NAME?"}},null,null,null,{"$f":"ConvertDate(#REF!)","v":{"$error":"#NAME?"}}]
[{"$f":"SUBTOTAL(3,$B$5:B19)","v":1},null,null,null,null,null,null,null,null,null,null,null,null,null,null,null,null,null,null,null,null,null,null,null,null,null,null,{"$f":"I16-AC19","v":{"$error":"#NAME?"}},{"$f":"ConvertDate(#REF!)","v":{"$error":"#NAME?"}},null,{"$f":"ConvertDate(#REF!)","v":{"$error":"#NAME?"}},null,null,null,{"$f":"ConvertDate(#REF!)","v":{"$error":"#NAME?"}}]
[{"$f":"SUBTOTAL(3,$B$5:B20)","v":1},null,null,null,null,null,null,null,null,null,null,null,null,null,null,null,null,null,null,null,null,null,null,null,null,null,null,{"$f":"I17-AC20","v":{"$error":"#NAME?"}},{"$f":"ConvertDate(#REF!)","v":{"$error":"#NAME?"}},null,{"$f":"ConvertDate(#REF!)","v":{"$error":"#NAME?"}},null,null,null,{"$f":"ConvertDate(#REF!)","v":{"$error":"#NAME?"}}]
[{"$f":"SUBTOTAL(3,$B$5:B21)","v":1},null,null,null,null,null,null,null,null,null,null,null,null,null,null,null,null,null,null,null,null,null,null,null,null,null,null,{"$f":"I18-AC21","v":{"$error":"#NAME?"}},{"$f":"ConvertDate(#REF!)","v":{"$error":"#NAME?"}},null,{"$f":"ConvertDate(#REF!)","v":{"$error":"#NAME?"}},null,null,null,{"$f":"ConvertDate(#REF!)","v":{"$error":"#NAME?"}}]
[{"$f":"SUBTOTAL(3,$B$5:B22)","v":1},null,null,null,null,null,null,null,null,null,null,null,null,null,null,null,null,null,null,null,null,null,null,null,null,null,null,{"$f":"I19-AC22","v":{"$error":"#NAME?"}},{"$f":"ConvertDate(#REF!)","v":{"$error":"#NAME?"}},null,{"$f":"ConvertDate(#REF!)","v":{"$error":"#NAME?"}},null,null,null,{"$f":"ConvertDate(#REF!)","v":{"$error":"#NAME?"}}]
[{"$f":"SUBTOTAL(3,$B$5:B23)","v":1},null,null,null,null,null,null,null,null,null,null,null,null,null,null,null,null,null,null,null,null,null,null,null,null,null,null,{"$f":"I20-AC23","v":{"$error":"#NAME?"}},{"$f":"ConvertDate(#REF!)","v":{"$error":"#NAME?"}},null,{"$f":"ConvertDate(#REF!)","v":{"$error":"#NAME?"}},null,null,null,{"$f":"ConvertDate(#REF!)","v":{"$error":"#NAME?"}}]
[{"$f":"SUBTOTAL(3,$B$5:B24)","v":1},null,null,null,null,null,null,null,null,null,null,null,null,null,null,null,null,null,null,null,null,null,null,null,null,null,null,{"$f":"I21-AC24","v":{"$error":"#NAME?"}},{"$f":"ConvertDate(#REF!)","v":{"$error":"#NAME?"}},null,{"$f":"ConvertDate(#REF!)","v":{"$error":"#NAME?"}},null,null,null,{"$f":"ConvertDate(#REF!)","v":{"$error":"#NAME?"}}]
[{"$f":"SUBTOTAL(3,$B$5:B25)","v":1},null,null,null,null,null,null,null,null,null,null,null,null,null,null,null,null,null,null,null,null,null,null,null,null,null,null,{"$f":"I22-AC25","v":{"$error":"#NAME?"}},{"$f":"ConvertDate(#REF!)","v":{"$error":"#NAME?"}},null,{"$f":"ConvertDate(#REF!)","v":{"$error":"#NAME?"}},null,null,null,{"$f":"ConvertDate(#REF!)","v":{"$error":"#NAME?"}}]
[{"$f":"SUBTOTAL(3,$B$5:B26)","v":1},null,null,null,null,null,null,null,null,null,null,null,null,null,null,null,null,null,null,null,null,null,null,null,null,null,null,{"$f":"I23-AC26","v":{"$error":"#NAME?"}},{"$f":"ConvertDate(#REF!)","v":{"$error":"#NAME?"}},null,{"$f":"ConvertDate(#REF!)","v":{"$error":"#NAME?"}},null,null,null,{"$f":"ConvertDate(#REF!)","v":{"$error":"#NAME?"}}]
[{"$f":"SUBTOTAL(3,$B$5:B27)","v":1},null,null,null,null,null,null,null,null,null,null,null,null,null,null,null,null,null,null,null,null,null,null,null,null,null,null,{"$f":"I24-AC27","v":{"$error":"#NAME?"}},{"$f":"ConvertDate(#REF!)","v":{"$error":"#NAME?"}},null,{"$f":"ConvertDate(#REF!)","v":{"$error":"#NAME?"}},null,null,null,{"$f":"ConvertDate(#REF!)","v":{"$error":"#NAME?"}}]
[{"$f":"SUBTOTAL(3,$B$5:B28)","v":1},null,null,null,null,null,null,null,null,null,null,null,null,null,null,null,null,null,null,null,null,null,null,null,null,null,null,{"$f":"I25-AC28","v":{"$error":"#NAME?"}},{"$f":"ConvertDate(#REF!)","v":{"$error":"#NAME?"}},null,{"$f":"ConvertDate(#REF!)","v":{"$error":"#NAME?"}},null,null,null,{"$f":"ConvertDate(#REF!)","v":{"$error":"#NAME?"}}]
[{"$f":"SUBTOTAL(3,$B$5:B29)","v":1},null,null,null,null,null,null,null,null,null,null,null,null,null,null,null,null,null,null,null,null,null,null,null,null,null,null,{"$f":"I26-AC29","v":{"$error":"#NAME?"}},{"$f":"ConvertDate(#REF!)","v":{"$error":"#NAME?"}},null,{"$f":"ConvertDate(#REF!)","v":{"$error":"#NAME?"}},null,null,null,{"$f":"ConvertDate(#REF!)","v":{"$error":"#NAME?"}}]
[{"$f":"SUBTOTAL(3,$B$5:B30)","v":1},null,null,null,null,null,null,null,null,null,null,null,null,null,null,null,null,null,null,null,null,null,null,null,null,null,null,{"$f":"I27-AC30","v":{"$error":"#NAME?"}},{"$f":"ConvertDate(#REF!)","v":{"$error":"#NAME?"}},null,{"$f":"ConvertDate(#REF!)","v":{"$error":"#NAME?"}},null,null,null,{"$f":"ConvertDate(#REF!)","v":{"$error":"#NAME?"}}]
[{"$f":"SUBTOTAL(3,$B$5:B31)","v":1},null,null,null,null,null,null,null,null,null,null,null,null,null,null,null,null,null,null,null,null,null,null,null,null,null,null,{"$f":"I28-AC31","v":{"$error":"#NAME?"}},{"$f":"ConvertDate(#REF!)","v":{"$error":"#NAME?"}},null,{"$f":"ConvertDate(#REF!)","v":{"$error":"#NAME?"}},null,null,null,{"$f":"ConvertDate(#REF!)","v":{"$error":"#NAME?"}}]
[{"$f":"SUBTOTAL(3,$B$5:B32)","v":1},null,null,null,null,null,null,null,null,null,null,null,null,null,null,null,null,null,null,null,null,null,null,null,null,null,null,{"$f":"I29-AC32","v":{"$error":"#NAME?"}},{"$f":"ConvertDate(#REF!)","v":{"$error":"#NAME?"}},null,{"$f":"ConvertDate(#REF!)","v":{"$error":"#NAME?"}},null,null,null,{"$f":"ConvertDate(#REF!)","v":{"$error":"#NAME?"}}]
[{"$f":"SUBTOTAL(3,$B$5:B33)","v":1},null,null,null,null,null,null,null,null,null,null,null,null,null,null,null,null,null,null,null,null,null,null,null,null,null,null,{"$f":"I30-AC33","v":{"$error":"#NAME?"}},{"$f":"ConvertDate(#REF!)","v":{"$error":"#NAME?"}},null,{"$f":"ConvertDate(#REF!)","v":{"$error":"#NAME?"}},null,null,null,{"$f":"ConvertDate(#REF!)","v":{"$error":"#NAME?"}}]
[{"$f":"SUBTOTAL(3,$B$5:B34)","v":1},null,null,null,null,null,null,null,null,null,null,null,null,null,null,null,null,null,null,null,null,null,null,null,null,null,null,{"$f":"I31-AC34","v":{"$error":"#NAME?"}},{"$f":"ConvertDate(#REF!)","v":{"$error":"#NAME?"}},null,{"$f":"ConvertDate(#REF!)","v":{"$error":"#NAME?"}},null,null,null,{"$f":"ConvertDate(#REF!)","v":{"$error":"#NAME?"}}]
[{"$f":"SUBTOTAL(3,$B$5:B35)","v":1},null,null,null,null,null,null,null,null,null,null,null,null,null,null,null,null,null,null,null,null,null,null,null,null,null,null,{"$f":"I32-AC35","v":{"$error":"#NAME?"}},{"$f":"ConvertDate(#REF!)","v":{"$error":"#NAME?"}},null,{"$f":"ConvertDate(#REF!)","v":{"$error":"#NAME?"}},null,null,null,{"$f":"ConvertDate(#REF!)","v":{"$error":"#NAME?"}}]
[{"$f":"SUBTOTAL(3,$B$5:B36)","v":1},null,null,null,null,null,null,null,null,null,null,null,null,null,null,null,null,null,null,null,null,null,null,null,null,null,null,{"$f":"I33-AC36","v":{"$error":"#NAME?"}},{"$f":"ConvertDate(#REF!)","v":{"$error":"#NAME?"}},null,{"$f":"ConvertDate(#REF!)","v":{"$error":"#NAME?"}},null,null,null,{"$f":"ConvertDate(#REF!)","v":{"$error":"#NAME?"}}]
[{"$f":"SUBTOTAL(3,$B$5:B37)","v":1},null,null,null,null,null,null,null,null,null,null,null,null,null,null,null,null,null,null,null,null,null,null,null,null,null,null,{"$f":"I34-AC37","v":{"$error":"#NAME?"}},{"$f":"ConvertDate(#REF!)","v":{"$error":"#NAME?"}},null,{"$f":"ConvertDate(#REF!)","v":{"$error":"#NAME?"}},null,null,null,{"$f":"ConvertDate(#REF!)","v":{"$error":"#NAME?"}}]
[{"$f":"SUBTOTAL(3,$B$5:B38)","v":1},null,null,null,null,null,null,null,null,null,null,null,null,null,null,null,null,null,null,null,null,null,null,null,null,null,null,{"$f":"I35-AC38","v":{"$error":"#NAME?"}},{"$f":"ConvertDate(#REF!)","v":{"$error":"#NAME?"}},null,{"$f":"ConvertDate(#REF!)","v":{"$error":"#NAME?"}},null,null,null,{"$f":"ConvertDate(#REF!)","v":{"$error":"#NAME?"}}]
[{"$f":"SUBTOTAL(3,$B$5:B39)","v":1},null,null,null,null,null,null,null,null,null,null,null,null,null,null,null,null,null,null,null,null,null,null,null,null,null,null,{"$f":"I36-AC39","v":{"$error":"#NAME?"}},{"$f":"ConvertDate(#REF!)","v":{"$error":"#NAME?"}},null,{"$f":"ConvertDate(#REF!)","v":{"$error":"#NAME?"}},null,null,null,{"$f":"ConvertDate(#REF!)","v":{"$error":"#NAME?"}}]
[{"$f":"SUBTOTAL(3,$B$5:B40)","v":1},null,null,null,null,null,null,null,null,null,null,null,null,null,null,null,null,null,null,null,null,null,null,null,null,null,null,{"$f":"I37-AC40","v":{"$error":"#NAME?"}},{"$f":"ConvertDate(#REF!)","v":{"$error":"#NAME?"}},null,{"$f":"ConvertDate(#REF!)","v":{"$error":"#NAME?"}},null,null,null,{"$f":"ConvertDate(#REF!)","v":{"$error":"#NAME?"}}]
[{"$f":"SUBTOTAL(3,$B$5:B41)","v":1},null,null,null,null,null,null,null,null,null,null,null,null,null,null,null,null,null,null,null,null,null,null,null,null,null,null,{"$f":"I38-AC41","v":{"$error":"#NAME?"}},{"$f":"ConvertDate(#REF!)","v":{"$error":"#NAME?"}},null,{"$f":"ConvertDate(#REF!)","v":{"$error":"#NAME?"}},null,null,null,{"$f":"ConvertDate(#REF!)","v":{"$error":"#NAME?"}}]
[{"$f":"SUBTOTAL(3,$B$5:B42)","v":1},null,null,null,null,null,null,null,null,null,null,null,null,null,null,null,null,null,null,null,null,null,null,null,null,null,null,{"$f":"I39-AC42","v":{"$error":"#NAME?"}},{"$f":"ConvertDate(#REF!)","v":{"$error":"#NAME?"}},null,{"$f":"ConvertDate(#REF!)","v":{"$error":"#NAME?"}},null,null,null,{"$f":"ConvertDate(#REF!)","v":{"$error":"#NAME?"}}]
[{"$f":"SUBTOTAL(3,$B$5:B43)","v":1},null,null,null,null,null,null,null,null,null,null,null,null,null,null,null,null,null,null,null,null,null,null,null,null,null,null,{"$f":"I40-AC43","v":{"$error":"#NAME?"}},{"$f":"ConvertDate(#REF!)","v":{"$error":"#NAME?"}},null,{"$f":"ConvertDate(#REF!)","v":{"$error":"#NAME?"}},null,null,null,{"$f":"ConvertDate(#REF!)","v":{"$error":"#NAME?"}}]
[{"$f":"SUBTOTAL(3,$B$5:B44)","v":1},null,null,null,null,null,null,null,null,null,null,null,null,null,null,null,null,null,null,null,null,null,null,null,null,null,null,{"$f":"I41-AC44","v":{"$error":"#NAME?"}},{"$f":"ConvertDate(#REF!)","v":{"$error":"#NAME?"}},null,{"$f":"ConvertDate(#REF!)","v":{"$error":"#NAME?"}},null,null,null,{"$f":"ConvertDate(#REF!)","v":{"$error":"#NAME?"}}]
[{"$f":"SUBTOTAL(3,$B$5:B45)","v":1},null,null,null,null,null,null,null,null,null,null,null,null,null,null,null,null,null,null,null,null,null,null,null,null,null,null,{"$f":"I42-AC45","v":{"$error":"#NAME?"}},{"$f":"ConvertDate(#REF!)","v":{"$error":"#NAME?"}},null,{"$f":"ConvertDate(#REF!)","v":{"$error":"#NAME?"}},null,null,null,{"$f":"ConvertDate(#REF!)","v":{"$error":"#NAME?"}}]
[{"$f":"SUBTOTAL(3,$B$5:B46)","v":1},null,null,null,null,null,null,null,null,null,null,null,null,null,null,null,null,null,null,null,null,null,null,null,null,null,null,{"$f":"I43-AC46","v":{"$error":"#NAME?"}},{"$f":"ConvertDate(#REF!)","v":{"$error":"#NAME?"}},null,{"$f":"ConvertDate(#REF!)","v":{"$error":"#NAME?"}},null,null,null,{"$f":"ConvertDate(#REF!)","v":{"$error":"#NAME?"}}]
[{"$f":"SUBTOTAL(3,$B$5:B46)","v":1},null,null,null,null,null,null,null,null,null,null,null,null,null,null,null,null,null,null,null,null,null,null,null,null,null,null,{"$f":"I44-AC47","v":{"$error":"#NAME?"}},{"$f":"ConvertDate(#REF!)","v":{"$error":"#NAME?"}},null,{"$f":"ConvertDate(#REF!)","v":{"$error":"#NAME?"}},null,null,null,{"$f":"ConvertDate(#REF!)","v":{"$error":"#NAME?"}}]
[{"$f":"SUBTOTAL(3,$B$5:B47)","v":1},null,null,null,null,null,null,null,null,null,null,null,null,null,null,null,null,null,null,null,null,null,null,null,null,null,null,{"$f":"I45-AC48","v":{"$error":"#NAME?"}},{"$f":"ConvertDate(#REF!)","v":{"$error":"#NAME?"}},null,{"$f":"ConvertDate(#REF!)","v":{"$error":"#NAME?"}},null,null,null,{"$f":"ConvertDate(#REF!)","v":{"$error":"#NAME?"}}]
[{"$f":"SUBTOTAL(3,$B$5:B48)","v":1},null,null,null,null,null,null,null,null,null,null,null,null,null,null,null,null,null,null,null,null,null,null,null,null,null,null,{"$f":"I46-AC49","v":{"$error":"#NAME?"}},{"$f":"ConvertDate(#REF!)","v":{"$error":"#NAME?"}},null,{"$f":"ConvertDate(#REF!)","v":{"$error":"#NAME?"}},null,null,null,{"$f":"ConvertDate(#REF!)","v":{"$error":"#NAME?"}}]
[{"$f":"SUBTOTAL(3,$B$5:B49)","v":1},null,null,null,null,null,null,null,null,null,null,null,null,null,null,null,null,null,null,null,null,null,null,null,null,null,null,{"$f":"I47-AC50","v":{"$error":"#NAME?"}},{"$f":"ConvertDate(#REF!)","v":{"$error":"#NAME?"}},null,{"$f":"ConvertDate(#REF!)","v":{"$error":"#NAME?"}},null,null,null,{"$f":"ConvertDate(#REF!)","v":{"$error":"#NAME?"}}]
[{"$f":"SUBTOTAL(3,$B$5:B50)","v":1},null,null,null,null,null,null,null,null,null,null,null,null,null,null,null,null,null,null,null,null,null,null,null,null,null,null,{"$f":"I48-AC51","v":{"$error":"#NAME?"}},{"$f":"ConvertDate(#REF!)","v":{"$error":"#NAME?"}},null,{"$f":"ConvertDate(#REF!)","v":{"$error":"#NAME?"}},null,null,null,{"$f":"ConvertDate(#REF!)","v":{"$error":"#NAME?"}}]
[{"$f":"SUBTOTAL(3,$B$5:B51)","v":1},null,null,null,null,null,null,null,null,null,null,null,null,null,null,null,null,null,null,null,null,null,null,null,null,null,null,{"$f":"I49-AC52","v":{"$error":"#NAME?"}},{"$f":"ConvertDate(#REF!)","v":{"$error":"#NAME?"}},null,{"$f":"ConvertDate(#REF!)","v":{"$error":"#NAME?"}},null,null,null,{"$f":"ConvertDate(#REF!)","v":{"$error":"#NAME?"}}]
[{"$f":"SUBTOTAL(3,$B$5:B52)","v":1},null,null,null,null,null,null,null,null,null,null,null,null,null,null,null,null,null,null,null,null,null,null,null,null,null,null,{"$f":"I50-AC53","v":{"$error":"#NAME?"}},{"$f":"ConvertDate(#REF!)","v":{"$error":"#NAME?"}},null,{"$f":"ConvertDate(#REF!)","v":{"$error":"#NAME?"}},null,null,null,{"$f":"ConvertDate(#REF!)","v":{"$error":"#NAME?"}}]
[{"$f":"SUBTOTAL(3,$B$5:B53)","v":1},null,null,null,null,null,null,null,null,null,null,null,null,null,null,null,null,null,null,null,null,null,null,null,null,null,null,{"$f":"I51-AC54","v":{"$error":"#NAME?"}},{"$f":"ConvertDate(#REF!)","v":{"$error":"#NAME?"}},null,{"$f":"ConvertDate(#REF!)","v":{"$error":"#NAME?"}},null,null,null,{"$f":"ConvertDate(#REF!)","v":{"$error":"#NAME?"}}]
[{"$f":"SUBTOTAL(3,$B$5:B54)","v":1},null,null,null,null,null,null,null,null,null,null,null,null,null,null,null,null,null,null,null,null,null,null,null,null,null,null,{"$f":"I52-AC55","v":{"$error":"#NAME?"}},{"$f":"ConvertDate(#REF!)","v":{"$error":"#NAME?"}},null,{"$f":"ConvertDate(#REF!)","v":{"$error":"#NAME?"}},null,null,null,{"$f":"ConvertDate(#REF!)","v":{"$error":"#NAME?"}}]
[{"$f":"SUBTOTAL(3,$B$5:B55)","v":1},null,null,null,null,null,null,null,null,null,null,null,null,null,null,null,null,null,null,null,null,null,null,null,null,null,null,{"$f":"I53-AC56","v":{"$error":"#NAME?"}},{"$f":"ConvertDate(#REF!)","v":{"$error":"#NAME?"}},null,{"$f":"ConvertDate(#REF!)","v":{"$error":"#NAME?"}},null,null,null,{"$f":"ConvertDate(#REF!)","v":{"$error":"#NAME?"}}]
[{"$f":"SUBTOTAL(3,$B$5:B56)","v":1},null,null,null,null,null,null,null,null,null,null,null,null,null,null,null,null,null,null,null,null,null,null,null,null,null,null,{"$f":"I54-AC57","v":{"$error":"#NAME?"}},{"$f":"ConvertDate(#REF!)","v":{"$error":"#NAME?"}},null,{"$f":"ConvertDate(#REF!)","v":{"$error":"#NAME?"}},null,null,null,{"$f":"ConvertDate(#REF!)","v":{"$error":"#NAME?"}}]
[{"$f":"SUBTOTAL(3,$B$5:B57)","v":1},null,null,null,null,null,null,null,null,null,null,null,null,null,null,null,null,null,null,null,null,null,null,null,null,null,null,{"$f":"I55-AC58","v":{"$error":"#NAME?"}},{"$f":"ConvertDate(#REF!)","v":{"$error":"#NAME?"}},null,{"$f":"ConvertDate(#REF!)","v":{"$error":"#NAME?"}},null,null,null,{"$f":"ConvertDate(#REF!)","v":{"$error":"#NAME?"}}]
[{"$f":"SUBTOTAL(3,$B$5:B58)","v":1},null,null,null,null,null,null,null,null,null,null,null,null,null,null,null,null,null,null,null,null,null,null,null,null,null,null,{"$f":"I56-AC59","v":{"$error":"#NAME?"}},{"$f":"ConvertDate(#REF!)","v":{"$error":"#NAME?"}},null,{"$f":"ConvertDate(#REF!)","v":{"$error":"#NAME?"}},null,null,null,{"$f":"ConvertDate(#REF!)","v":{"$error":"#NAME?"}}]
[{"$f":"SUBTOTAL(3,$B$5:B59)","v":1},null,null,null,null,null,null,null,null,null,null,null,null,null,null,null,null,null,null,null,null,null,null,null,null,null,null,{"$f":"I57-AC60","v":{"$error":"#NAME?"}},{"$f":"ConvertDate(#REF!)","v":{"$error":"#NAME?"}},null,{"$f":"ConvertDate(#REF!)","v":{"$error":"#NAME?"}},null,null,null,{"$f":"ConvertDate(#REF!)","v":{"$error":"#NAME?"}}]
[{"$f":"SUBTOTAL(3,$B$5:B60)","v":1},null,null,null,null,null,null,null,null,null,null,null,null,null,null,null,null,null,null,null,null,null,null,null,null,null,null,{"$f":"I58-AC61","v":{"$error":"#NAME?"}},{"$f":"ConvertDate(#REF!)","v":{"$error":"#NAME?"}},null,{"$f":"ConvertDate(#REF!)","v":{"$error":"#NAME?"}},null,null,null,{"$f":"ConvertDate(#REF!)","v":{"$error":"#NAME?"}}]
[{"$f":"SUBTOTAL(3,$B$5:B61)","v":1},null,null,null,null,null,null,null,null,null,null,null,null,null,null,null,null,null,null,null,null,null,null,null,null,null,null,{"$f":"I59-AC62","v":{"$error":"#NAME?"}},{"$f":"ConvertDate(#REF!)","v":{"$error":"#NAME?"}},null,{"$f":"ConvertDate(#REF!)","v":{"$error":"#NAME?"}},null,null,null,{"$f":"ConvertDate(#REF!)","v":{"$error":"#NAME?"}}]
[{"$f":"SUBTOTAL(3,$B$5:B62)","v":1},null,null,null,null,null,null,null,null,null,null,null,null,null,null,null,null,null,null,null,null,null,null,null,null,null,null,{"$f":"I60-AC63","v":{"$error":"#NAME?"}},{"$f":"ConvertDate(#REF!)","v":{"$error":"#NAME?"}},null,{"$f":"ConvertDate(#REF!)","v":{"$error":"#NAME?"}},null,null,null,{"$f":"ConvertDate(#REF!)","v":{"$error":"#NAME?"}}]
[{"$f":"SUBTOTAL(3,$B$5:B63)","v":1},null,null,null,null,null,null,null,null,null,null,null,null,null,null,null,null,null,null,null,null,null,null,null,null,null,null,{"$f":"I61-AC64","v":{"$error":"#NAME?"}},{"$f":"ConvertDate(#REF!)","v":{"$error":"#NAME?"}},null,{"$f":"ConvertDate(#REF!)","v":{"$error":"#NAME?"}},null,null,null,{"$f":"ConvertDate(#REF!)","v":{"$error":"#NAME?"}}]
[{"$f":"SUBTOTAL(3,$B$5:B64)","v":1},null,null,null,null,null,null,null,null,null,null,null,null,null,null,null,null,null,null,null,null,null,null,null,null,null,null,{"$f":"I62-AC65","v":{"$error":"#NAME?"}},{"$f":"ConvertDate(#REF!)","v":{"$error":"#NAME?"}},null,{"$f":"ConvertDate(#REF!)","v":{"$error":"#NAME?"}},null,null,null,{"$f":"ConvertDate(#REF!)","v":{"$error":"#NAME?"}}]
[{"$f":"SUBTOTAL(3,$B$5:B65)","v":1},null,null,null,null,null,null,null,null,null,null,null,null,null,null,null,null,null,null,null,null,null,null,null,null,null,null,{"$f":"I63-AC66","v":{"$error":"#NAME?"}},{"$f":"ConvertDate(#REF!)","v":{"$error":"#NAME?"}},null,{"$f":"ConvertDate(#REF!)","v":{"$error":"#NAME?"}},null,null,null,{"$f":"ConvertDate(#REF!)","v":{"$error":"#NAME?"}}]
[{"$f":"SUBTOTAL(3,$B$5:B66)","v":1},null,null,null,null,null,null,null,null,null,null,null,null,null,null,null,null,null,null,null,null,null,null,null,null,null,null,{"$f":"I64-AC67","v":{"$error":"#NAME?"}},{"$f":"ConvertDate(#REF!)","v":{"$error":"#NAME?"}},null,{"$f":"ConvertDate(#REF!)","v":{"$error":"#NAME?"}},null,null,null,{"$f":"ConvertDate(#REF!)","v":{"$error":"#NAME?"}}]
[{"$f":"SUBTOTAL(3,$B$5:B67)","v":1},null,null,null,null,null,null,null,null,null,null,null,null,null,null,null,null,null,null,null,null,null,null,null,null,null,null,{"$f":"I65-AC68","v":{"$error":"#NAME?"}},{"$f":"ConvertDate(#REF!)","v":{"$error":"#NAME?"}},null,{"$f":"ConvertDate(#REF!)","v":{"$error":"#NAME?"}},null,null,null,{"$f":"ConvertDate(#REF!)","v":{"$error":"#NAME?"}}]
[{"$f":"SUBTOTAL(3,$B$5:B68)","v":1},null,null,null,null,null,null,null,null,null,null,null,null,null,null,null,null,null,null,null,null,null,null,null,null,null,null,{"$f":"I66-AC69","v":{"$error":"#NAME?"}},{"$f":"ConvertDate(#REF!)","v":{"$error":"#NAME?"}},null,{"$f":"ConvertDate(#REF!)","v":{"$error":"#NAME?"}},null,null,null,{"$f":"ConvertDate(#REF!)","v":{"$error":"#NAME?"}}]
[{"$f":"SUBTOTAL(3,$B$5:B69)","v":1},null,null,null,null,null,null,null,null,null,null,null,null,null,null,null,null,null,null,null,null,null,null,null,null,null,null,{"$f":"I67-AC70","v":{"$error":"#NAME?"}},{"$f":"ConvertDate(#REF!)","v":{"$error":"#NAME?"}},null,{"$f":"ConvertDate(#REF!)","v":{"$error":"#NAME?"}},null,null,null,{"$f":"ConvertDate(#REF!)","v":{"$error":"#NAME?"}}]
[{"$f":"SUBTOTAL(3,$B$5:B70)","v":1},null,null,null,null,null,null,null,null,null,null,null,null,null,null,null,null,null,null,null,null,null,null,null,null,null,null,{"$f":"I68-AC71","v":{"$error":"#NAME?"}},{"$f":"ConvertDate(#REF!)","v":{"$error":"#NAME?"}},null,{"$f":"ConvertDate(#REF!)","v":{"$error":"#NAME?"}},null,null,null,{"$f":"ConvertDate(#REF!)","v":{"$error":"#NAME?"}}]
[{"$f":"SUBTOTAL(3,$B$5:B71)","v":1},null,null,null,null,null,null,null,null,null,null,null,null,null,null,null,null,null,null,null,null,null,null,null,null,null,null,{"$f":"I69-AC72","v":{"$error":"#NAME?"}},{"$f":"ConvertDate(#REF!)","v":{"$error":"#NAME?"}},null,{"$f":"ConvertDate(#REF!)","v":{"$error":"#NAME?"}},null,null,null,{"$f":"ConvertDate(#REF!)","v":{"$error":"#NAME?"}}]
[{"$f":"SUBTOTAL(3,$B$5:B72)","v":1},null,null,null,null,null,null,null,null,null,null,null,null,null,null,null,null,null,null,null,null,null,null,null,null,null,null,{"$f":"I70-AC73","v":{"$error":"#NAME?"}},{"$f":"ConvertDate(#REF!)","v":{"$error":"#NAME?"}},null,{"$f":"ConvertDate(#REF!)","v":{"$error":"#NAME?"}},null,null,null,{"$f":"ConvertDate(#REF!)","v":{"$error":"#NAME?"}}]
[{"$f":"SUBTOTAL(3,$B$5:B73)","v":1},null,null,null,null,null,null,null,null,null,null,null,null,null,null,null,null,null,null,null,null,null,null,null,null,null,null,{"$f":"I71-AC74","v":{"$error":"#NAME?"}},{"$f":"ConvertDate(#REF!)","v":{"$error":"#NAME?"}},null,{"$f":"ConvertDate(#REF!)","v":{"$error":"#NAME?"}},null,null,null,{"$f":"ConvertDate(#REF!)","v":{"$error":"#NAME?"}}]
[{"$f":"SUBTOTAL(3,$B$5:B74)","v":1},null,null,null,null,null,null,null,null,null,null,null,null,null,null,null,null,null,null,null,null,null,null,null,null,null,null,{"$f":"I72-AC75","v":{"$error":"#NAME?"}},{"$f":"ConvertDate(#REF!)","v":{"$error":"#NAME?"}},null,{"$f":"ConvertDate(#REF!)","v":{"$error":"#NAME?"}},null,null,null,{"$f":"ConvertDate(#REF!)","v":{"$error":"#NAME?"}}]
[{"$f":"SUBTOTAL(3,$B$5:B75)","v":1},null,null,null,null,null,null,null,null,null,null,null,null,null,null,null,null,null,null,null,null,null,null,null,null,null,null,{"$f":"I73-AC76","v":{"$error":"#NAME?"}},{"$f":"ConvertDate(#REF!)","v":{"$error":"#NAME?"}},null,{"$f":"ConvertDate(#REF!)","v":{"$error":"#NAME?"}},null,null,null,{"$f":"ConvertDate(#REF!)","v":{"$error":"#NAME?"}}]
[{"$f":"SUBTOTAL(3,$B$5:B76)","v":1},null,null,null,null,null,null,null,null,null,null,null,null,null,null,null,null,null,null,null,null,null,null,null,null,null,null,{"$f":"I74-AC77","v":{"$error":"#NAME?"}},{"$f":"ConvertDate(#REF!)","v":{"$error":"#NAME?"}},null,{"$f":"ConvertDate(#REF!)","v":{"$error":"#NAME?"}},null,null,null,{"$f":"ConvertDate(#REF!)","v":{"$error":"#NAME?"}}]
[{"$f":"SUBTOTAL(3,$B$5:B77)","v":1},null,null,null,null,null,null,null,null,null,null,null,null,null,null,null,null,null,null,null,null,null,null,null,null,null,null,{"$f":"I75-AC78","v":{"$error":"#NAME?"}},{"$f":"ConvertDate(#REF!)","v":{"$error":"#NAME?"}},null,{"$f":"ConvertDate(#REF!)","v":{"$error":"#NAME?"}},null,null,null,{"$f":"ConvertDate(#REF!)","v":{"$error":"#NAME?"}}]
[{"$f":"SUBTOTAL(3,$B$5:B78)","v":1},null,null,null,null,null,null,null,null,null,null,null,null,null,null,null,null,null,null,null,null,null,null,null,null,null,null,{"$f":"I76-AC79","v":{"$error":"#NAME?"}},{"$f":"ConvertDate(#REF!)","v":{"$error":"#NAME?"}},null,{"$f":"ConvertDate(#REF!)","v":{"$error":"#NAME?"}},null,null,null,{"$f":"ConvertDate(#REF!)","v":{"$error":"#NAME?"}}]
[{"$f":"SUBTOTAL(3,$B$5:B79)","v":1},null,null,null,null,null,null,null,null,null,null,null,null,null,null,null,null,null,null,null,null,null,null,null,null,null,null,{"$f":"I77-AC80","v":{"$error":"#NAME?"}},{"$f":"ConvertDate(#REF!)","v":{"$error":"#NAME?"}},null,{"$f":"ConvertDate(#REF!)","v":{"$error":"#NAME?"}},null,null,null,{"$f":"ConvertDate(#REF!)","v":{"$error":"#NAME?"}}]
[{"$f":"SUBTOTAL(3,$B$5:B80)","v":1},null,null,null,null,null,null,null,null,null,null,null,null,null,null,null,null,null,null,null,null,null,null,null,null,null,null,{"$f":"I78-AC81","v":{"$error":"#NAME?"}},{"$f":"ConvertDate(#REF!)","v":{"$error":"#NAME?"}},null,{"$f":"ConvertDate(#REF!)","v":{"$error":"#NAME?"}},null,null,null,{"$f":"ConvertDate(#REF!)","v":{"$error":"#NAME?"}}]
[{"$f":"SUBTOTAL(3,$B$5:B81)","v":1},null,null,null,null,null,null,null,null,null,null,null,null,null,null,null,null,null,null,null,null,null,null,null,null,null,null,{"$f":"I79-AC82","v":{"$error":"#NAME?"}},{"$f":"ConvertDate(#REF!)","v":{"$error":"#NAME?"}},null,{"$f":"ConvertDate(#REF!)","v":{"$error":"#NAME?"}},null,null,null,{"$f":"ConvertDate(#REF!)","v":{"$error":"#NAME?"}}]
[{"$f":"SUBTOTAL(3,$B$5:B82)","v":1},null,null,null,null,null,null,null,null,null,null,null,null,null,null,null,null,null,null,null,null,null,null,null,null,null,null,{"$f":"I80-AC83","v":{"$error":"#NAME?"}},{"$f":"ConvertDate(#REF!)","v":{"$error":"#NAME?"}},null,{"$f":"ConvertDate(#REF!)","v":{"$error":"#NAME?"}},null,null,null,{"$f":"ConvertDate(#REF!)","v":{"$error":"#NAME?"}}]
[{"$f":"SUBTOTAL(3,$B$5:B83)","v":1},null,null,null,null,null,null,null,null,null,null,null,null,null,null,null,null,null,null,null,null,null,null,null,null,null,null,{"$f":"I81-AC84","v":{"$error":"#NAME?"}},{"$f":"ConvertDate(#REF!)","v":{"$error":"#NAME?"}},null,{"$f":"ConvertDate(#REF!)","v":{"$error":"#NAME?"}},null,null,null,{"$f":"ConvertDate(#REF!)","v":{"$error":"#NAME?"}}]
[{"$f":"SUBTOTAL(3,$B$5:B84)","v":1},null,null,null,null,null,null,null,null,null,null,null,null,null,null,null,null,null,null,null,null,null,null,null,null,null,null,{"$f":"I82-AC85","v":{"$error":"#NAME?"}},{"$f":"ConvertDate(#REF!)","v":{"$error":"#NAME?"}},null,{"$f":"ConvertDate(#REF!)","v":{"$error":"#NAME?"}},null,null,null,{"$f":"ConvertDate(#REF!)","v":{"$error":"#NAME?"}}]
[{"$f":"SUBTOTAL(3,$B$5:B85)","v":1},null,null,null,null,null,null,null,null,null,null,null,null,null,null,null,null,null,null,null,null,null,null,null,null,null,null,{"$f":"I83-AC86","v":{"$error":"#NAME?"}},{"$f":"ConvertDate(#REF!)","v":{"$error":"#NAME?"}},null,{"$f":"ConvertDate(#REF!)","v":{"$error":"#NAME?"}},null,null,null,{"$f":"ConvertDate(#REF!)","v":{"$error":"#NAME?"}}]
[{"$f":"SUBTOTAL(3,$B$5:B86)","v":1},null,null,null,null,null,null,null,null,null,null,null,null,null,null,null,null,null,null,null,null,null,null,null,null,null,null,{"$f":"I84-AC87","v":{"$error":"#NAME?"}},{"$f":"ConvertDate(#REF!)","v":{"$error":"#NAME?"}},null,{"$f":"ConvertDate(#REF!)","v":{"$error":"#NAME?"}},null,null,null,{"$f":"ConvertDate(#REF!)","v":{"$error":"#NAME?"}}]
[{"$f":"SUBTOTAL(3,$B$5:B87)","v":1},null,null,null,null,null,null,null,null,null,null,null,null,null,null,null,null,null,null,null,null,null,null,null,null,null,null,{"$f":"I85-AC88","v":{"$error":"#NAME?"}},{"$f":"ConvertDate(#REF!)","v":{"$error":"#NAME?"}},null,{"$f":"ConvertDate(#REF!)","v":{"$error":"#NAME?"}},null,null,null,{"$f":"ConvertDate(#REF!)","v":{"$error":"#NAME?"}}]
[{"$f":"SUBTOTAL(3,$B$5:B88)","v":1},null,null,null,null,null,null,null,null,null,null,null,null,null,null,null,null,null,null,null,null,null,null,null,null,null,null,{"$f":"I86-AC89","v":{"$error":"#NAME?"}},{"$f":"ConvertDate(#REF!)","v":{"$error":"#NAME?"}},null,{"$f":"ConvertDate(#REF!)","v":{"$error":"#NAME?"}},null,null,null,{"$f":"ConvertDate(#REF!)","v":{"$error":"#NAME?"}}]
[{"$f":"SUBTOTAL(3,$B$5:B89)","v":1},null,null,null,null,null,null,null,null,null,null,null,null,null,null,null,null,null,null,null,null,null,null,null,null,null,null,{"$f":"I87-AC90","v":{"$error":"#NAME?"}},{"$f":"ConvertDate(#REF!)","v":{"$error":"#NAME?"}},null,{"$f":"ConvertDate(#REF!)","v":{"$error":"#NAME?"}},null,null,null,{"$f":"ConvertDate(#REF!)","v":{"$error":"#NAME?"}}]
[{"$f":"SUBTOTAL(3,$B$5:B90)","v":1},null,null,null,null,null,null,null,null,null,null,null,null,null,null,null,null,null,null,null,null,null,null,null,null,null,null,{"$f":"I88-AC91","v":{"$error":"#NAME?"}},{"$f":"ConvertDate(#REF!)","v":{"$error":"#NAME?"}},null,{"$f":"ConvertDate(#REF!)","v":{"$error":"#NAME?"}},null,null,null,{"$f":"ConvertDate(#REF!)","v":{"$error":"#NAME?"}}]
[{"$f":"SUBTOTAL(3,$B$5:B91)","v":1},null,null,null,null,null,null,null,null,null,null,null,null,null,null,null,null,null,null,null,null,null,null,null,null,null,null,{"$f":"I89-AC92","v":{"$error":"#NAME?"}},{"$f":"ConvertDate(#REF!)","v":{"$error":"#NAME?"}},null,{"$f":"ConvertDate(#REF!)","v":{"$error":"#NAME?"}},null,null,null,{"$f":"ConvertDate(#REF!)","v":{"$error":"#NAME?"}}]
[{"$f":"SUBTOTAL(3,$B$5:B92)","v":1},null,null,null,null,null,null,null,null,null,null,null,null,null,null,null,null,null,null,null,null,null,null,null,null,null,null,{"$f":"I90-AC93","v":{"$error":"#NAME?"}},{"$f":"ConvertDate(#REF!)","v":{"$error":"#NAME?"}},null,{"$f":"ConvertDate(#REF!)","v":{"$error":"#NAME?"}},null,null,null,{"$f":"ConvertDate(#REF!)","v":{"$error":"#NAME?"}}]
[{"$f":"SUBTOTAL(3,$B$5:B93)","v":1},null,null,null,null,null,null,null,null,null,null,"مدير مشروع بيشة",null,null,null,null,null,null,null,null,null,null,null,null,null,null,null,{"$f":"I91-AC94","v":{"$error":"#NAME?"}},{"$f":"ConvertDate(#REF!)","v":{"$error":"#NAME?"}},null,{"$f":"ConvertDate(#REF!)","v":{"$error":"#NAME?"}},null,null,null,{"$f":"ConvertDate(#REF!)","v":{"$error":"#NAME?"}}]
[{"$f":"SUBTOTAL(3,$B$5:B94)","v":1},null,null,null,null,null,null,null,null,null,null,null,null,null,null,null,null,null,null,null,null,null,null,null,null,null,null,{"$f":"I92-AC95","v":{"$error":"#NAME?"}},{"$f":"ConvertDate(#REF!)","v":{"$error":"#NAME?"}},null,{"$f":"ConvertDate(#REF!)","v":{"$error":"#NAME?"}},null,null,null,{"$f":"ConvertDate(#REF!)","v":{"$error":"#NAME?"}}]
[{"$f":"SUBTOTAL(3,$B$5:B95)","v":1},null,null,null,null,null,null,null,null,null,null,null,null,null,null,null,null,null,null,null,null,null,null,null,null,null,null,{"$f":"I93-AC96","v":{"$error":"#NAME?"}},{"$f":"ConvertDate(#REF!)","v":{"$error":"#NAME?"}},null,{"$f":"ConvertDate(#REF!)","v":{"$error":"#NAME?"}},null,null,null,{"$f":"ConvertDate(#REF!)","v":{"$error":"#NAME?"}}]
[{"$f":"SUBTOTAL(3,$B$5:B96)","v":1},null,null,null,null,null,null,null,null,null,null,null,null,null,null,null,null,null,null,null,null,null,null,null,null,null,null,{"$f":"I94-AC97","v":{"$error":"#NAME?"}},{"$f":"ConvertDate(#REF!)","v":{"$error":"#NAME?"}},null,{"$f":"ConvertDate(#REF!)","v":{"$error":"#NAME?"}},null,null,null,{"$f":"ConvertDate(#REF!)","v":{"$error":"#NAME?"}}]
[{"$f":"SUBTOTAL(3,$B$5:B97)","v":1},null,null,null,null,null,null,null,null,null,null,"مقدم اجازة",null,null,null,null,null,null,null,null,null,null,null,null,null,null,null,{"$f":"I95-AC98","v":{"$error":"#NAME?"}},{"$f":"ConvertDate(#REF!)","v":{"$error":"#NAME?"}},null,{"$f":"ConvertDate(#REF!)","v":{"$error":"#NAME?"}},null,null,null,{"$f":"ConvertDate(#REF!)","v":{"$error":"#NAME?"}}]
[{"$f":"SUBTOTAL(3,$B$5:B98)","v":1},null,null,null,null,null,null,null,null,null,null,null,null,null,null,null,null,null,null,null,null,null,null,null,null,null,null,{"$f":"I96-AC99","v":{"$error":"#NAME?"}},{"$f":"ConvertDate(#REF!)","v":{"$error":"#NAME?"}},null,{"$f":"ConvertDate(#REF!)","v":{"$error":"#NAME?"}},null,null,null,{"$f":"ConvertDate(#REF!)","v":{"$error":"#NAME?"}}]
[{"$f":"SUBTOTAL(3,$B$5:B99)","v":1},null,null,null,null,null,null,null,null,null,null,null,null,null,null,null,null,null,null,null,null,null,null,null,null,null,null,{"$f":"I97-AC100","v":{"$error":"#NAME?"}},{"$f":"ConvertDate(#REF!)","v":{"$error":"#NAME?"}},null,{"$f":"ConvertDate(#REF!)","v":{"$error":"#NAME?"}},null,null,null,{"$f":"ConvertDate(#REF!)","v":{"$error":"#NAME?"}}]
[{"$f":"SUBTOTAL(3,$B$5:B100)","v":1},null,null,null,null,null,null,null,null,null,null,null,null,null,null,null,null,null,null,null,null,null,null,null,null,null,null,{"$f":"I98-AC101","v":{"$error":"#NAME?"}},{"$f":"ConvertDate(#REF!)","v":{"$error":"#NAME?"}},null,{"$f":"ConvertDate(#REF!)","v":{"$error":"#NAME?"}},null,null,null,{"$f":"ConvertDate(#REF!)","v":{"$error":"#NAME?"}}]
[{"$f":"SUBTOTAL(3,$B$5:B101)","v":1},null,null,null,null,null,null,null,null,null,null,null,null,null,null,null,null,null,null,null,null,null,null,null,null,null,null,{"$f":"I99-AC102","v":{"$error":"#NAME?"}},{"$f":"ConvertDate(#REF!)","v":{"$error":"#NAME?"}},null,{"$f":"ConvertDate(#REF!)","v":{"$error":"#NAME?"}},null,null,null,{"$f":"ConvertDate(#REF!)","v":{"$error":"#NAME?"}}]
[{"$f":"SUBTOTAL(3,$B$5:B102)","v":1},null,null,null,null,null,null,null,null,null,null,null,null,null,null,null,null,null,null,null,null,null,null,null,null,null,null,{"$f":"I100-AC103","v":{"$error":"#NAME?"}},{"$f":"ConvertDate(#REF!)","v":{"$error":"#NAME?"}},null,{"$f":"ConvertDate(#REF!)","v":{"$error":"#NAME?"}},null,null,null,{"$f":"ConvertDate(#REF!)","v":{"$error":"#NAME?"}}]
[{"$f":"SUBTOTAL(3,$B$5:B102)","v":1},null,null,null,null,null,null,null,null,null,null,null,null,null,null,null,null,null,null,null,null,null,null,null,null,null,null,{"$f":"I101-AC104","v":{"$error":"#NAME?"}},{"$f":"ConvertDate(#REF!)","v":{"$error":"#NAME?"}},null,{"$f":"ConvertDate(#REF!)","v":{"$error":"#NAME?"}},null,null,null,{"$f":"ConvertDate(#REF!)","v":{"$error":"#NAME?"}}]
[{"$f":"SUBTOTAL(3,$B$5:B102)","v":1},null,null,null,null,null,null,null,null,null,null,null,null,null,null,null,null,null,null,null,null,null,null,null,null,null,null,{"$f":"I102-AC105","v":{"$error":"#NAME?"}},{"$f":"ConvertDate(#REF!)","v":{"$error":"#NAME?"}},null,{"$f":"ConvertDate(#REF!)","v":{"$error":"#NAME?"}},null,null,null,{"$f":"ConvertDate(#REF!)","v":{"$error":"#NAME?"}}]
[{"$f":"SUBTOTAL(3,$B$5:B103)","v":1},null,null,null,null,null,null,null,null,null,null,null,null,null,null,null,null,null,null,null,null,null,null,null,null,null,null,{"$f":"I103-AC106","v":{"$error":"#NAME?"}},{"$f":"ConvertDate(#REF!)","v":{"$error":"#NAME?"}},null,{"$f":"ConvertDate(#REF!)","v":{"$error":"#NAME?"}},null,null,null,{"$f":"ConvertDate(#REF!)","v":{"$error":"#NAME?"}}]
[{"$f":"SUBTOTAL(3,$B$5:B104)","v":1},null,null,null,null,null,null,null,null,null,null,null,null,null,null,null,null,null,null,null,null,null,null,null,null,null,null,{"$f":"I104-AC107","v":{"$error":"#NAME?"}},{"$f":"ConvertDate(#REF!)","v":{"$error":"#NAME?"}},null,{"$f":"ConvertDate(#REF!)","v":{"$error":"#NAME?"}},null,null,null,{"$f":"ConvertDate(#REF!)","v":{"$error":"#NAME?"}}]
[{"$f":"SUBTOTAL(3,$B$5:B105)","v":1},null,null,null,null,null,null,null,null,null,null,null,null,null,null,null,null,null,null,null,null,null,null,null,null,null,null,{"$f":"I105-AC108","v":{"$error":"#NAME?"}},{"$f":"ConvertDate(#REF!)","v":{"$error":"#NAME?"}},null,{"$f":"ConvertDate(#REF!)","v":{"$error":"#NAME?"}},null,null,null,{"$f":"ConvertDate(#REF!)","v":{"$error":"#NAME?"}}]
[{"$f":"SUBTOTAL(3,$B$5:B106)","v":1},null,null,null,null,null,null,null,null,null,null,null,null,null,null,null,null,null,null,null,null,null,null,null,null,null,null,{"$f":"I106-AC109","v":{"$error":"#NAME?"}},{"$f":"ConvertDate(#REF!)","v":{"$error":"#NAME?"}},null,{"$f":"ConvertDate(#REF!)","v":{"$error":"#NAME?"}},null,null,null,{"$f":"ConvertDate(#REF!)","v":{"$error":"#NAME?"}}]
[{"$f":"SUBTOTAL(3,$B$5:B107)","v":1},null,null,null,null,null,null,null,null,null,null,null,null,null,null,null,null,null,null,null,null,null,null,null,null,null,null,{"$f":"I107-AC110","v":{"$error":"#NAME?"}},{"$f":"ConvertDate(#REF!)","v":{"$error":"#NAME?"}},null,{"$f":"ConvertDate(#REF!)","v":{"$error":"#NAME?"}},null,null,null,{"$f":"ConvertDate(#REF!)","v":{"$error":"#NAME?"}}]
[{"$f":"SUBTOTAL(3,$B$5:B108)","v":1},null,null,null,null,null,null,null,null,null,null,null,null,null,null,null,null,null,null,null,null,null,null,null,null,null,null,{"$f":"I108-AC111","v":{"$error":"#NAME?"}},{"$f":"ConvertDate(#REF!)","v":{"$error":"#NAME?"}},null,{"$f":"ConvertDate(#REF!)","v":{"$error":"#NAME?"}},null,null,null,{"$f":"ConvertDate(#REF!)","v":{"$error":"#NAME?"}}]
[{"$f":"SUBTOTAL(3,$B$5:B109)","v":1},null,null,null,null,null,null,null,null,null,null,null,null,null,null,null,null,null,null,null,null,null,null,null,null,null,null,{"$f":"I109-AC112","v":{"$error":"#NAME?"}},{"$f":"ConvertDate(#REF!)","v":{"$error":"#NAME?"}},null,{"$f":"ConvertDate(#REF!)","v":{"$error":"#NAME?"}},null,null,null,{"$f":"ConvertDate(#REF!)","v":{"$error":"#NAME?"}}]
[{"$f":"SUBTOTAL(3,$B$5:B110)","v":1},null,null,null,null,null,null,null,null,null,null,"إجازة",null,null,null,null,null,null,null,null,null,null,null,null,null,null,null,{"$f":"I110-AC113","v":{"$error":"#NAME?"}},{"$f":"ConvertDate(#REF!)","v":{"$error":"#NAME?"}},null,{"$f":"ConvertDate(#REF!)","v":{"$error":"#NAME?"}},null,null,null,{"$f":"ConvertDate(#REF!)","v":{"$error":"#NAME?"}}]
[{"$f":"SUBTOTAL(3,$B$5:B111)","v":1},null,null,null,null,null,null,null,null,null,null,null,null,null,null,null,null,null,null,null,null,null,null,null,null,null,null,{"$f":"I111-AC114","v":{"$error":"#NAME?"}},{"$f":"ConvertDate(#REF!)","v":{"$error":"#NAME?"}},null,{"$f":"ConvertDate(#REF!)","v":{"$error":"#NAME?"}},null,null,null,{"$f":"ConvertDate(#REF!)","v":{"$error":"#NAME?"}}]
[{"$f":"SUBTOTAL(3,$B$5:B112)","v":1},null,null,null,null,null,null,null,null,null,null,null,null,null,null,null,null,null,null,null,null,null,null,null,null,null,null,{"$f":"I112-AC115","v":{"$error":"#NAME?"}},{"$f":"ConvertDate(#REF!)","v":{"$error":"#NAME?"}},null,{"$f":"ConvertDate(#REF!)","v":{"$error":"#NAME?"}},null,null,null,{"$f":"ConvertDate(#REF!)","v":{"$error":"#NAME?"}}]
[{"$f":"SUBTOTAL(3,$B$5:B113)","v":1},null,null,null,null,null,null,null,null,null,null,null,null,null,null,null,null,null,null,null,null,null,null,null,null,null,null,{"$f":"I113-AC116","v":{"$error":"#NAME?"}},{"$f":"ConvertDate(#REF!)","v":{"$error":"#NAME?"}},null,{"$f":"ConvertDate(#REF!)","v":{"$error":"#NAME?"}},null,null,null,{"$f":"ConvertDate(#REF!)","v":{"$error":"#NAME?"}}]
[{"$f":"SUBTOTAL(3,$B$5:B114)","v":1},null,null,null,null,null,null,null,null,null,null,null,null,null,null,null,null,null,null,null,null,null,null,null,null,null,null,{"$f":"I114-AC117","v":{"$error":"#NAME?"}},{"$f":"ConvertDate(#REF!)","v":{"$error":"#NAME?"}},null,{"$f":"ConvertDate(#REF!)","v":{"$error":"#NAME?"}},null,null,null,{"$f":"ConvertDate(#REF!)","v":{"$error":"#NAME?"}}]
[{"$f":"SUBTOTAL(3,$B$5:B115)","v":1},null,null,null,null,null,null,null,null,null,null,null,null,null,null,null,null,null,null,null,null,null,null,null,null,null,null,{"$f":"I115-AC118","v":{"$error":"#NAME?"}},{"$f":"ConvertDate(#REF!)","v":{"$error":"#NAME?"}},null,{"$f":"ConvertDate(#REF!)","v":{"$error":"#NAME?"}},null,null,null,{"$f":"ConvertDate(#REF!)","v":{"$error":"#NAME?"}}]
[{"$f":"SUBTOTAL(3,$B$5:B116)","v":1},null,null,null,null,null,null,null,null,null,null,null,null,null,null,null,null,null,null,null,null,null,null,null,null,null,null,{"$f":"I116-AC119","v":{"$error":"#NAME?"}},{"$f":"ConvertDate(#REF!)","v":{"$error":"#NAME?"}},null,{"$f":"ConvertDate(#REF!)","v":{"$error":"#NAME?"}},null,null,null,{"$f":"ConvertDate(#REF!)","v":{"$error":"#NAME?"}}]
[{"$f":"SUBTOTAL(3,$B$5:B117)","v":1},null,null,null,null,null,null,null,null,null,null,null,null,null,null,null,null,null,null,null,null,null,null,null,null,null,null,{"$f":"I117-AC120","v":{"$error":"#NAME?"}},{"$f":"ConvertDate(#REF!)","v":{"$error":"#NAME?"}},null,{"$f":"ConvertDate(#REF!)","v":{"$error":"#NAME?"}},null,null,null,{"$f":"ConvertDate(#REF!)","v":{"$error":"#NAME?"}}]
[{"$f":"SUBTOTAL(3,$B$5:B118)","v":1},null,null,null,null,null,null,null,null,null,null,null,null,null,null,null,null,null,null,null,null,null,null,null,null,null,null,{"$f":"I118-AC121","v":{"$error":"#NAME?"}},{"$f":"ConvertDate(#REF!)","v":{"$error":"#NAME?"}},null,{"$f":"ConvertDate(#REF!)","v":{"$error":"#NAME?"}},null,null,null,{"$f":"ConvertDate(#REF!)","v":{"$error":"#NAME?"}}]
[{"$f":"SUBTOTAL(3,$B$5:B119)","v":1},null,null,null,null,null,null,null,null,null,null,null,null,null,null,null,null,null,null,null,null,null,null,null,null,null,null,{"$f":"I119-AC122","v":{"$error":"#NAME?"}},{"$f":"ConvertDate(#REF!)","v":{"$error":"#NAME?"}},null,{"$f":"ConvertDate(#REF!)","v":{"$error":"#NAME?"}},null,null,null,{"$f":"ConvertDate(#REF!)","v":{"$error":"#NAME?"}}]
[{"$f":"SUBTOTAL(3,$B$5:B120)","v":1},null,null,null,null,null,null,null,null,null,null,null,null,null,null,null,null,null,null,null,null,null,null,null,null,null,null,{"$f":"I120-AC123","v":{"$error":"#NAME?"}},{"$f":"ConvertDate(#REF!)","v":{"$error":"#NAME?"}},null,{"$f":"ConvertDate(#REF!)","v":{"$error":"#NAME?"}},null,null,null,{"$f":"ConvertDate(#REF!)","v":{"$error":"#NAME?"}}]
[{"$f":"SUBTOTAL(3,$B$5:B121)","v":1},null,null,null,null,null,null,null,null,null,null,null,null,null,null,null,null,null,null,null,null,null,null,null,null,null,null,{"$f":"I121-AC124","v":{"$error":"#NAME?"}},{"$f":"ConvertDate(#REF!)","v":{"$error":"#NAME?"}},null,{"$f":"ConvertDate(#REF!)","v":{"$error":"#NAME?"}},null,null,null,{"$f":"ConvertDate(#REF!)","v":{"$error":"#NAME?"}}]
[{"$f":"SUBTOTAL(3,$B$5:B122)","v":1},null,null,null,null,null,null,null,null,null,null,"لعب مش جد",null,null,null,null,null,null,null,null,null,null,null,null,null,null,null,{"$f":"I122-AC125","v":{"$error":"#NAME?"}},{"$f":"ConvertDate(#REF!)","v":{"$error":"#NAME?"}},null,{"$f":"ConvertDate(#REF!)","v":{"$error":"#NAME?"}},null,null,null,{"$f":"ConvertDate(#REF!)","v":{"$error":"#NAME?"}}]
[{"$f":"SUBTOTAL(3,$B$5:B123)","v":1},null,null,null,null,null,null,null,null,null,null,"الرخصة منتهية",null,null,null,null,null,null,null,null,null,null,null,null,null,null,null,{"$f":"I123-AC126","v":{"$error":"#NAME?"}},{"$f":"ConvertDate(#REF!)","v":{"$error":"#NAME?"}},null,{"$f":"ConvertDate(#REF!)","v":{"$error":"#NAME?"}},null,null,null,{"$f":"ConvertDate(#REF!)","v":{"$error":"#NAME?"}}]
[{"$f":"SUBTOTAL(3,$B$5:B124)","v":1},null,null,null,null,null,null,null,null,null,null,null,null,null,null,null,null,null,null,null,null,null,null,null,null,null,null,{"$f":"I124-AC127","v":{"$error":"#NAME?"}},{"$f":"ConvertDate(#REF!)","v":{"$error":"#NAME?"}},null,{"$f":"ConvertDate(#REF!)","v":{"$error":"#NAME?"}},null,null,null,{"$f":"ConvertDate(#REF!)","v":{"$error":"#NAME?"}}]
[{"$f":"SUBTOTAL(3,$B$5:B125)","v":1},null,null,null,null,null,null,null,null,null,null,null,null,null,null,null,null,null,null,null,null,null,null,null,null,null,null,{"$f":"I125-AC128","v":{"$error":"#NAME?"}},{"$f":"ConvertDate(#REF!)","v":{"$error":"#NAME?"}},null,{"$f":"ConvertDate(#REF!)","v":{"$error":"#NAME?"}},null,null,null,{"$f":"ConvertDate(#REF!)","v":{"$error":"#NAME?"}}]
[{"$f":"SUBTOTAL(3,$B$5:B126)","v":1},null,null,null,null,null,null,null,null,null,null,null,null,null,null,null,null,null,null,null,null,null,null,null,null,null,null,{"$f":"I126-AC129","v":{"$error":"#NAME?"}},{"$f":"ConvertDate(#REF!)","v":{"$error":"#NAME?"}},null,{"$f":"ConvertDate(#REF!)","v":{"$error":"#NAME?"}},null,null,null,{"$f":"ConvertDate(#REF!)","v":{"$error":"#NAME?"}}]
[{"$f":"SUBTOTAL(3,$B$5:B127)","v":1},null,null,null,null,null,null,null,null,null,null,null,null,null,null,null,null,null,null,null,null,null,null,null,null,null,null,{"$f":"I127-AC130","v":{"$error":"#NAME?"}},{"$f":"ConvertDate(#REF!)","v":{"$error":"#NAME?"}},null,{"$f":"ConvertDate(#REF!)","v":{"$error":"#NAME?"}},null,null,null,{"$f":"ConvertDate(#REF!)","v":{"$error":"#NAME?"}}]
[{"$f":"SUBTOTAL(3,$B$5:B128)","v":1},null,null,null,null,null,null,null,null,null,null,null,null,null,null,null,null,null,null,null,null,null,null,null,null,null,null,{"$f":"I128-AC131","v":{"$error":"#NAME?"}},{"$f":"ConvertDate(#REF!)","v":{"$error":"#NAME?"}},null,{"$f":"ConvertDate(#REF!)","v":{"$error":"#NAME?"}},null,null,null,{"$f":"ConvertDate(#REF!)","v":{"$error":"#NAME?"}}]
[{"$f":"SUBTOTAL(3,$B$5:B129)","v":1},null,null,null,null,null,null,null,null,null,null,null,null,null,null,null,null,null,null,null,null,null,null,null,null,null,null,{"$f":"I129-AC132","v":{"$error":"#NAME?"}},{"$f":"ConvertDate(#REF!)","v":{"$error":"#NAME?"}},null,{"$f":"ConvertDate(#REF!)","v":{"$error":"#NAME?"}},null,null,null,{"$f":"ConvertDate(#REF!)","v":{"$error":"#NAME?"}}]
[{"$f":"SUBTOTAL(3,$B$5:B130)","v":1},null,null,null,null,null,null,null,null,null,null,null,null,null,null,null,null,null,null,null,null,null,null,null,null,null,null,{"$f":"I130-AC133","v":{"$error":"#NAME?"}},{"$f":"ConvertDate(#REF!)","v":{"$error":"#NAME?"}},null,{"$f":"ConvertDate(#REF!)","v":{"$error":"#NAME?"}},null,null,null,{"$f":"ConvertDate(#REF!)","v":{"$error":"#NAME?"}}]
[{"$f":"SUBTOTAL(3,$B$5:B131)","v":1},null,null,null,null,null,null,null,null,null,null,null,null,null,null,null,null,null,null,null,null,null,null,null,null,null,null,{"$f":"I131-AC134","v":{"$error":"#NAME?"}},{"$f":"ConvertDate(#REF!)","v":{"$error":"#NAME?"}},null,{"$f":"ConvertDate(#REF!)","v":{"$error":"#NAME?"}},null,null,null,{"$f":"ConvertDate(#REF!)","v":{"$error":"#NAME?"}}]
[{"$f":"SUBTOTAL(3,$B$5:B132)","v":1},null,null,null,null,null,null,null,null,null,null,null,null,null,null,null,null,null,null,null,null,null,null,null,null,null,null,{"$f":"I132-AC135","v":{"$error":"#NAME?"}},{"$f":"ConvertDate(#REF!)","v":{"$error":"#NAME?"}},null,{"$f":"ConvertDate(#REF!)","v":{"$error":"#NAME?"}},null,null,null,{"$f":"ConvertDate(#REF!)","v":{"$error":"#NAME?"}}]
[{"$f":"SUBTOTAL(3,$B$5:B133)","v":1},null,null,null,null,null,null,null,null,null,null,null,null,null,null,null,null,null,null,null,null,null,null,null,null,null,null,{"$f":"I133-AC136","v":{"$error":"#NAME?"}},{"$f":"ConvertDate(#REF!)","v":{"$error":"#NAME?"}},null,{"$f":"ConvertDate(#REF!)","v":{"$error":"#NAME?"}},null,null,null,{"$f":"ConvertDate(#REF!)","v":{"$error":"#NAME?"}}]
[{"$f":"SUBTOTAL(3,$B$5:B134)","v":1},null,null,null,null,null,null,null,null,null,null,null,null,null,null,null,null,null,null,null,null,null,null,null,null,null,null,{"$f":"I134-AC137","v":{"$error":"#NAME?"}},{"$f":"ConvertDate(#REF!)","v":{"$error":"#NAME?"}},null,{"$f":"ConvertDate(#REF!)","v":{"$error":"#NAME?"}},null,null,null,{"$f":"ConvertDate(#REF!)","v":{"$error":"#NAME?"}}]
[{"$f":"SUBTOTAL(3,$B$5:B135)","v":1},null,null,null,null,null,null,null,null,null,null,null,null,null,null,null,null,null,null,null,null,null,null,null,null,null,null,{"$f":"I135-AC138","v":{"$error":"#NAME?"}},{"$f":"ConvertDate(#REF!)","v":{"$error":"#NAME?"}},null,{"$f":"ConvertDate(#REF!)","v":{"$error":"#NAME?"}},null,null,null,{"$f":"ConvertDate(#REF!)","v":{"$error":"#NAME?"}}]
[{"$f":"SUBTOTAL(3,$B$5:B136)","v":1},null,null,null,null,null,null,null,null,null,null,null,null,null,null,null,null,null,null,null,null,null,null,null,null,null,null,{"$f":"I136-AC139","v":{"$error":"#NAME?"}},{"$f":"ConvertDate(#REF!)","v":{"$error":"#NAME?"}},null,{"$f":"ConvertDate(#REF!)","v":{"$error":"#NAME?"}},null,null,null,{"$f":"ConvertDate(#REF!)","v":{"$error":"#NAME?"}}]
[{"$f":"SUBTOTAL(3,$B$5:B137)","v":1},null,null,null,null,null,null,null,null,null,null,null,null,null,null,null,null,null,null,null,null,null,null,null,null,null,null,{"$f":"I137-AC140","v":{"$error":"#NAME?"}},{"$f":"ConvertDate(#REF!)","v":{"$error":"#NAME?"}},null,{"$f":"ConvertDate(#REF!)","v":{"$error":"#NAME?"}},null,null,null,{"$f":"ConvertDate(#REF!)","v":{"$error":"#NAME?"}}]
[{"$f":"SUBTOTAL(3,$B$5:B138)","v":1},null,null,null,null,null,null,null,null,null,null,null,null,null,null,null,null,null,null,null,null,null,null,null,null,null,null,{"$f":"I138-AC141","v":{"$error":"#NAME?"}},{"$f":"ConvertDate(#REF!)","v":{"$error":"#NAME?"}},null,{"$f":"ConvertDate(#REF!)","v":{"$error":"#NAME?"}},null,null,null,{"$f":"ConvertDate(#REF!)","v":{"$error":"#NAME?"}}]
[{"$f":"SUBTOTAL(3,$B$5:B139)","v":1},null,null,null,null,null,null,null,null,null,null,null,null,null,null,null,null,null,null,null,null,null,null,null,null,null,null,{"$f":"I139-AC142","v":{"$error":"#NAME?"}},{"$f":"ConvertDate(#REF!)","v":{"$error":"#NAME?"}},null,{"$f":"ConvertDate(#REF!)","v":{"$error":"#NAME?"}},null,null,null,{"$f":"ConvertDate(#REF!)","v":{"$error":"#NAME?"}}]
[{"$f":"SUBTOTAL(3,$B$5:B140)","v":1},null,null,null,null,null,null,null,null,null,null,null,null,null,null,null,null,null,null,null,null,null,null,null,null,null,null,{"$f":"I140-AC143","v":{"$error":"#NAME?"}},{"$f":"ConvertDate(#REF!)","v":{"$error":"#NAME?"}},null,{"$f":"ConvertDate(#REF!)","v":{"$error":"#NAME?"}},null,null,null,{"$f":"ConvertDate(#REF!)","v":{"$error":"#NAME?"}}]
[{"$f":"SUBTOTAL(3,$B$5:B141)","v":1},null,null,null,null,null,null,null,null,null,null,null,null,null,null,null,null,null,null,null,null,null,null,null,null,null,null,{"$f":"I141-AC144","v":{"$error":"#NAME?"}},{"$f":"ConvertDate(#REF!)","v":{"$error":"#NAME?"}},null,{"$f":"ConvertDate(#REF!)","v":{"$error":"#NAME?"}},null,null,null,{"$f":"ConvertDate(#REF!)","v":{"$error":"#NAME?"}}]
[{"$f":"SUBTOTAL(3,$B$5:B142)","v":1},null,null,null,null,null,null,null,null,null,null,null,null,null,null,null,null,null,null,null,null,null,null,null,null,null,null,{"$f":"I142-AC145","v":{"$error":"#NAME?"}},{"$f":"ConvertDate(#REF!)","v":{"$error":"#NAME?"}},null,{"$f":"ConvertDate(#REF!)","v":{"$error":"#NAME?"}},null,null,null,{"$f":"ConvertDate(#REF!)","v":{"$error":"#NAME?"}}]
[{"$f":"SUBTOTAL(3,$B$5:B143)","v":1},null,null,null,null,null,null,null,null,null,null,null,null,null,null,null,null,null,null,null,null,null,null,null,null,null,null,{"$f":"I143-AC146","v":{"$error":"#NAME?"}},{"$f":"ConvertDate(#REF!)","v":{"$error":"#NAME?"}},null,{"$f":"ConvertDate(#REF!)","v":{"$error":"#NAME?"}},null,null,null,{"$f":"ConvertDate(#REF!)","v":{"$error":"#NAME?"}}]
[{"$f":"SUBTOTAL(3,$B$5:B144)","v":1},null,null,null,null,null,null,null,null,null,null,null,null,null,null,null,null,null,null,null,null,null,null,null,null,null,null,{"$f":"I144-AC147","v":{"$error":"#NAME?"}},{"$f":"ConvertDate(#REF!)","v":{"$error":"#NAME?"}},null,{"$f":"ConvertDate(#REF!)","v":{"$error":"#NAME?"}},null,null,null,{"$f":"ConvertDate(#REF!)","v":{"$error":"#NAME?"}}]
[{"$f":"SUBTOTAL(3,$B$5:B145)","v":1},null,null,null,null,null,null,null,null,null,null,null,null,null,null,null,null,null,null,null,null,null,null,null,null,null,null,{"$f":"I145-AC148","v":{"$error":"#NAME?"}},{"$f":"ConvertDate(#REF!)","v":{"$error":"#NAME?"}},null,{"$f":"ConvertDate(#REF!)","v":{"$error":"#NAME?"}},null,null,null,{"$f":"ConvertDate(#REF!)","v":{"$error":"#NAME?"}}]
[{"$f":"SUBTOTAL(3,$B$5:B146)","v":1},null,null,null,null,null,null,null,null,null,null,null,null,null,null,null,null,null,null,null,null,null,null,null,null,null,null,{"$f":"I146-AC149","v":{"$error":"#NAME?"}},{"$f":"ConvertDate(#REF!)","v":{"$error":"#NAME?"}},null,{"$f":"ConvertDate(#REF!)","v":{"$error":"#NAME?"}},null,null,null,{"$f":"ConvertDate(#REF!)","v":{"$error":"#NAME?"}}]
[{"$f":"SUBTOTAL(3,$B$5:B147)","v":1},null,null,null,null,null,null,null,null,null,null,null,null,null,null,null,null,null,null,null,null,null,null,null,null,null,null,{"$f":"I147-AC150","v":{"$error":"#NAME?"}},{"$f":"ConvertDate(#REF!)","v":{"$error":"#NAME?"}},null,{"$f":"ConvertDate(#REF!)","v":{"$error":"#NAME?"}},null,null,null,{"$f":"ConvertDate(#REF!)","v":{"$error":"#NAME?"}}]
[{"$f":"SUBTOTAL(3,$B$5:B148)","v":1},null,null,null,null,null,null,null,null,null,null,null,null,null,null,null,null,null,null,null,null,null,null,null,null,null,null,{"$f":"I148-AC151","v":{"$error":"#NAME?"}},{"$f":"ConvertDate(#REF!)","v":{"$error":"#NAME?"}},null,{"$f":"ConvertDate(#REF!)","v":{"$error":"#NAME?"}},null,null,null,{"$f":"ConvertDate(#REF!)","v":{"$error":"#NAME?"}}]
[{"$f":"SUBTOTAL(3,$B$5:B149)","v":1},{"$f":"SUBTOTAL(103,Alldata[كود المعدة])","v":1},{"$f":"SUBTOTAL(103,Alldata[الرقم التسلسلي])","v":1},{"$f":"SUBTOTAL(103,Alldata[الموقع])","v":1},{"$f":"SUBTOTAL(103,Alldata[وصف الاصل])","v":1},{"$f":"SUBTOTAL(103,Alldata[الموديل])","v":1},{"$f":"SUBTOTAL(103,Alldata[اللون])","v":1},{"$f":"SUBTOTAL(103,Alldata[رقم اللوحة])","v":1},{"$f":"SUBTOTAL(103,Alldata[رقم الهيكل])","v":1},{"$f":"SUBTOTAL(103,Alldata[المالك])","v":1},{"$f":"SUBTOTAL(103,Alldata[الترخيص])","v":1},{"$f":"SUBTOTAL(103,Alldata[ملاحظات])","v":5},null,null,null,null,null,null,null,null,null,null,null,null,null,null,null,{"$f":"I149-AC152","v":{"$error":"#NAME?"}},{"$f":"ConvertDate(#REF!)","v":{"$error":"#NAME?"}},null,{"$f":"ConvertDate(#REF!)","v":{"$error":"#NAME?"}},null,null,null,{"$f":"ConvertDate(#REF!)","v":{"$error":"#NAME?"}}]
[{"$f":"SUBTOTAL(3,$B$5:B150)","v":1}]
[{"$f":"SUBTOTAL(3,$B$5:B151)","v":1}]